Workbook

Sheet 인건비 배분(수당지급)
A1: 연구과제 인건비 필요 예산 계산(2025년)-2025.1.21.(확정)
B3: ○ 2025년도 4대 사회보험 요율 ○
B4: 국민연금 | C4: 건강보험료 | D4: 요양보험료 | E4: 고용보험료 | F4: 산재보험료 | G4: 예비보험료 | H4: 합계
B5: 0.045 | C5: 0.03545 | D5: 0.004591 | E5: 0.0155 | F5: 0.00606 | G5: 0 | H5: =SUM(B5:G5) -> 0.106601
B6: 전년도 동일 (기준소득액 7월 변동예정) | C6: 전년도 동일 | D6: 전년도 동일 | E6: 7월 변동예정 | F6: 전년도 동일
B7: 1단계 : 보험가입 정보 입력
B8: 국민연금 | C8: 건강보험료 | D8: 요양보험료 | E8: 고용보험료 | F8: 산재보험료 | G8: 예비보험료 | H8: 합계
B9: 4.5 | C9: 3.545 | D9: 0.4591 | E9: 1.55 | F9: 0.606 | G9: 0.5 | H9: =SUM(B9:G9) -> 11.1601
B10: ※ 보험가입 항목의 보험료율 입력(미가입 항목은 0입력) : %제외 입력
B11: ※ 예비보험료 : 보험료 인상 및 연말정산 추가보험료 발생에 대비하여 산정 ☞ 미산정시 월급여 지급금액 부족
B12: 2단계 : 월급여 및 참여기간 | E12: 3단계 : 인건비 필요 예산
B13: 월급여 | C13: 지급개월(참여개월) | E13: 월급여(가) | F13: 기관부담금(나) | G13: 퇴직충당금(다) | H13: 합계=필요예산 (가+나+다)
B14: 2500000 | C14: 12 | E14: =$B$14*$C$14 -> 30000000 | F14: =ROUNDUP($E$14*$H$9/100,-3) -> 3349000 | G14: =ROUNDUP($E$14/12,-3) -> 2500000 | H14: =$E$14+$F$14+$G$14 -> 35849000
B15: ※ 고용계약서에 작성된 월급여 입력(세금 공제 전 금액)
B18: ★ 노란색 부분만 입력★

Sheet 인건비 계산 예시
B1: 노란색 셀만 입력 | E1: 기준일: 2025-01-21
A3: 예시 1: 월 급여가 정해진 경우 | B3: 월급여 | C3: 2500000
G4: 보험요율 | H4: 11.16 | I4: 변경금지
B5: 참여개월수 | C5: 12
B6: 총 급여 | C6: 총 기관부담금 | D6: 총 퇴직충당금 | E6: 총 예산
B7: =C3*C5 -> 30000000 | C7: =ROUNDUP($B$7*$H$4/100,-3) -> 3348000 | D7: =ROUNDUP(B7/12,-3) -> 2500000 | E7: =B7+C7+D7 -> 35848000
A10: 예시 2: 총 예산이 정해진 경우 | B10: 총 예산 | C10: 35848000 | G10: 1 | I10: 변경금지
G11: 0.1116 | H11: 기관부담금 | I11: 변경금지
B12: 참여개월수 | C12: 12 | G12: 0.08333 | H12: 퇴직금 | I12: 변경금지
G13: =SUM(G10:G12) -> 1.19493 | H13: 고정값 | I13: 변경금지
B14: 총 급여 | C14: 총 기관부담금 | D14: 총 퇴직충당금 | E14: 총 예산
B15: =ROUNDDOWN(C10/G13,-3) -> 30000000 | C15: =ROUNDUP(B15*G11,-3) -> 3348000 | D15: =ROUNDUP(B15*G12,-3) -> 2500000 | E15: =SUM(B15:D15) -> 35848000
B17: 월 급여
B18: =B15/C12 -> 2500000
A21: 예시 3: 총 예산이 정해진 경우 + 퇴직금 적립x(1년미만근무자) | B21: 총 예산 | C21: 35848000 | G21: 1 | I21: 변경금지
G22: 0.1116 | H22: 기관부담금 | I22: 변경금지
B23: 참여개월수 | C23: 12 | G23: 0 | H23: 퇴직금 | I23: 변경금지
G24: =SUM(G21:G23) -> 1.1116 | H24: 고정값 | I24: 변경금지
B25: 총 급여 | C25: 총 기관부담금 | D25: 총 퇴직충당금 | E25: 총 예산
B26: =ROUNDDOWN(C21/G24,-3) -> 32249000 | C26: =ROUNDUP(B26*G22,-3) -> 3599000 | D26: =ROUNDUP(B26*G23,-3) -> 0 | E26: =SUM(B26:D26) -> 35848000
B28: 월 급여
B29: =B26/C23 -> 2687416.667
A32: 예시 4: 총 예산이 정해진 경우 + 연금X 건강X 고용O 산재O | B32: 총 예산 | C32: 35848000 | G32: 1 | I32: 변경금지
A33: 주15시간 미만 근로자 | G33: 0.02656 | H33: 기관부담금 | I33: 변경금지
B34: 참여개월수 | C34: 12 | G34: 0.08333 | H34: 퇴직금 | I34: 변경금지
G35: =SUM(G32:G34) -> 1.10989 | H35: 고정값 | I35: 변경금지
B36: 총 급여 | C36: 총 기관부담금 | D36: 총 퇴직충당금 | E36: 총 예산
B37: =ROUNDDOWN(C32/G35,-3) -> 32298000 | C37: =ROUNDUP(B37*G33,-3) -> 858000 | D37: =ROUNDUP(B37*G34,-3) -> 2692000 | E37: =SUM(B37:D37) -> 35848000
B39: 월 급여
B40: =B37/C34 -> 2691500
A43: 예시 5: 총 예산이 정해진 경우 + 연금X 건강O 고용O 산재O | B43: 총 예산 | C43: 35848000 | G43: 1 | I43: 변경금지
A44: 만60세이상 가입자일 경우 | G44: 0.0666 | H44: 기관부담금 | I44: 변경금지
B45: 참여개월수 | C45: 12 | G45: 0.08333 | H45: 퇴직금 | I45: 변경금지
G46: =SUM(G43:G45) -> 1.14993 | H46: 고정값 | I46: 변경금지
B47: 총 급여 | C47: 총 기관부담금 | D47: 총 퇴직충당금 | E47: 총 예산
B48: =ROUNDDOWN(C43/G46,-3) -> 31174000 | C48: =ROUNDUP(B48*G44,-3) -> 2077000 | D48: =ROUNDUP(B48*G45,-3) -> 2598000 | E48: =SUM(B48:D48) -> 35849000
B50: 월 급여
B51: =B48/C45 -> 2597833.333
A54: 예시 6: 총 예산이 정해진 경우 + 연금O 건강O 고용X 산재O | B54: 총 예산 | C54: 35848000 | G54: 1 | I54: 변경금지
A55: 체류자격 E3의 외국인일 경우 | G55: 0.0961 | H55: 기관부담금 | I55: 변경금지
A56: (단, F2/F5/F6 코드는 고용보험 반드시 가입해야함) | B56: 참여개월수 | C56: 12 | G56: 0.08333 | H56: 퇴직금 | I56: 변경금지
G57: =SUM(G54:G56) -> 1.17943 | H57: 고정값 | I57: 변경금지
B58: 총 급여 | C58: 총 기관부담금 | D58: 총 퇴직충당금 | E58: 총 예산
B59: =ROUNDDOWN(C54/G57,-3) -> 30394000 | C59: =ROUNDUP(B59*G55,-3) -> 2921000 | D59: =ROUNDUP(B59*G56,-3) -> 2533000 | E59: =SUM(B59:D59) -> 35848000
B61: 월 급여
B62: =B59/C56 -> 2532833.333
A65: 예시 7: 총 예산이 정해진 경우 + 연금X 건강O 고용X 산재O | B65: 총 예산 | C65: 35848000 | G65: 1 | I65: 변경금지
A66: 체류자격 E3의 외국인일 경우 + 국민연금 가입국가가 아닐 경우 (단, F코드는 고용보험 가입해야함) | G66: 0.0511 | H66: 기관부담금 | I66: 변경금지
B67: 참여개월수 | C67: 12 | G67: 0.08333 | H67: 퇴직금 | I67: 변경금지
G68: =SUM(G65:G67) -> 1.13443 | H68: 고정값 | I68: 변경금지
B69: 총 급여 | C69: 총 기관부담금 | D69: 총 퇴직충당금 | E69: 총 예산
B70: =ROUNDDOWN(C65/G68,-3) -> 31600000 | C70: =ROUNDUP(B70*G66,-3) -> 1615000 | D70: =ROUNDUP(B70*G67,-3) -> 2634000 | E70: =SUM(B70:D70) -> 35849000
B72: 월 급여
B73: =B70/C67 -> 2633333.333
A76: 예시 8: 총 예산이 정해진 경우 + 연금X 건강X 고용O 산재O (퇴직금x) | B76: 총 예산 | C76: 35848000 | G76: 1 | I76: 변경금지
A77: 주15시간 미만 근로자 | G77: 0.02656 | H77: 기관부담금 | I77: 변경금지
B78: 참여개월수 | C78: 12 | G78: 0 | H78: 퇴직금 | I78: 변경금지
G79: =SUM(G76:G78) -> 1.02656 | H79: 고정값 | I79: 변경금지
B80: 총 급여 | C80: 총 기관부담금 | D80: 총 퇴직충당금 | E80: 총 예산
B81: =ROUNDDOWN(C76/G79,-3) -> 34920000 | C81: =ROUNDUP(B81*G77,-3) -> 928000 | D81: =ROUNDUP(B81*G78,-3) -> 0 | E81: =SUM(B81:D81) -> 35848000
B83: 월 급여
B84: =B81/C78 -> 2910000

Sheet 인건비 일할계산
A1: 노란셀만 입력 | E1: 월 급여 | F1: 일할계산 급여 | I1: 실제 근무일수 | K1: 취득월일수
E2: 2500000 | F2: =ROUNDDOWN((E2/K2)*I2,-1) -> 2500000 | I2: 30 | K2: 30
B3: 소득세 | C3: 주민세 | D3: (본인)건강보험 | E3: (본인)요양보험 | F3: (본인)국민연금 | G3: (본인)고용보험 | H3: (기관)건강보험 | I3: (기관)요양보험 | J3: (기관)국민연금 | K3: (기관)고용보험 | L3: (기관)산재보험 | N3: 개인납부합계 | O3: 기관부담금합계
A4: 요율(%) | D4: 3.545 | E4: 12.95 | F4: 4.5 | G4: 0.9 | H4: 3.545 | I4: 12.95 | J4: 4.5 | K4: 1.55 | L4: 0.606
A5: 금액 | B5: =IFERROR(IF(F2<=10000000,INDEX(간이세액표!$B$3:$C$650,MATCH(F2/1000,간이세액표!$B$3:$B$650,1)+1,2),IF(F2<=14000000,1560440+(F2-10000000)*0.98*0.35,IF(F2<=45000000,1560440+1372000+(F2-14000000)*0.98*0.38,1560440+12916400+(F2-45000000)*0.98*0.4))),0) -> 41630 | C5: =ROUNDDOWN(B5*0.1,-1) -> 4160 | D5: =ROUNDDOWN(E2*(D4/100),-1) -> 88620 | E5: =ROUNDDOWN(D5*(E4/100),-1) -> 11470 | F5: =ROUNDDOWN(E2*(F4/100),-1) -> 112500 | G5: =ROUNDDOWN(E2*(G4/100)/K2*I2,-1) -> 22500 | H5: =ROUNDDOWN(E2*(H4/100),-1) -> 88620 | I5: =ROUNDDOWN(H5*(I4/100),-1) -> 11470 | J5: =ROUNDDOWN(E2*(J4/100),-1) -> 112500 | K5: =ROUNDDOWN(E2*(K4/100)/K2*I2,-1) -> 38750 | L5: =ROUNDDOWN(E2*(L4/100)/K2*I2,-1) -> 15150 | N5: =SUM(D5:G5) -> 235090 | O5: =SUM(H5:L5) -> 266490

Sheet 간이세액표
A1: 2019년 근로소득에 대한 간이세액표(소득세법시행령 제189조 관련)
A2: 월급여액(천원) [비과세 및 학자금 제외］ | C2: 공제대상가족의 수
A3: 이상 | B3: 미만 | C3: 1 | D3: 2 | E3: 3 | F3: 4 | G3: 5 | H3: 6 | I3: 7 | J3: 8 | K3: 9 | L3: 10 | M3: 11
A4: 770 | B4: 775 | C4: 0
A5: 775 | B5: 780 | C5: 0
A6: 780 | B6: 785 | C6: 0
A7: 785 | B7: 790 | C7: 0
A8: 790 | B8: 795 | C8: 0
A9: 795 | B9: 800 | C9: 0
A10: 800 | B10: 805 | C10: 0
A11: 805 | B11: 810 | C11: 0
A12: 810 | B12: 815 | C12: 0
A13: 815 | B13: 820 | C13: 0
A14: 820 | B14: 825 | C14: 0
A15: 825 | B15: 830 | C15: 0
A16: 830 | B16: 835 | C16: 0
A17: 835 | B17: 840 | C17: 0
A18: 840 | B18: 845 | C18: 0
A19: 845 | B19: 850 | C19: 0
A20: 850 | B20: 855 | C20: 0
A21: 855 | B21: 860 | C21: 0
A22: 860 | B22: 865 | C22: 0
A23: 865 | B23: 870 | C23: 0
A24: 870 | B24: 875 | C24: 0
A25: 875 | B25: 880 | C25: 0
A26: 880 | B26: 885 | C26: 0
A27: 885 | B27: 890 | C27: 0
A28: 890 | B28: 895 | C28: 0
A29: 895 | B29: 900 | C29: 0
A30: 900 | B30: 905 | C30: 0
A31: 905 | B31: 910 | C31: 0
A32: 910 | B32: 915 | C32: 0
A33: 915 | B33: 920 | C33: 0
A34: 920 | B34: 925 | C34: 0
A35: 925 | B35: 930 | C35: 0
A36: 930 | B36: 935 | C36: 0
A37: 935 | B37: 940 | C37: 0
A38: 940 | B38: 945 | C38: 0
A39: 945 | B39: 950 | C39: 0
A40: 950 | B40: 955 | C40: 0
A41: 955 | B41: 960 | C41: 0
A42: 960 | B42: 965 | C42: 0
A43: 965 | B43: 970 | C43: 0
A44: 970 | B44: 975 | C44: 0
A45: 975 | B45: 980 | C45: 0
A46: 980 | B46: 985 | C46: 0
A47: 985 | B47: 990 | C47: 0
A48: 990 | B48: 995 | C48: 0
A49: 995 | B49: 1000 | C49: 0
A50: 1000 | B50: 1005 | C50: 0
A51: 1005 | B51: 1010 | C51: 0
A52: 1010 | B52: 1015 | C52: 0
A53: 1015 | B53: 1020 | C53: 0
A54: 1020 | B54: 1025 | C54: 0
A55: 1025 | B55: 1030 | C55: 0
A56: 1030 | B56: 1035 | C56: 0
A57: 1035 | B57: 1040 | C57: 0
A58: 1040 | B58: 1045 | C58: 0
A59: 1045 | B59: 1050 | C59: 0
A60: 1050 | B60: 1055 | C60: 0
A61: 1055 | B61: 1060 | C61: 0
A62: 1060 | B62: 1065 | C62: 1040 | D62: - | E62: - | F62: - | G62: - | H62: - | I62: - | J62: - | K62: - | L62: - | M62: -
A63: 1065 | B63: 1070 | C63: 1110 | D63: - | E63: - | F63: - | G63: - | H63: - | I63: - | J63: - | K63: - | L63: - | M63: -
A64: 1070 | B64: 1075 | C64: 1180 | D64: - | E64: - | F64: - | G64: - | H64: - | I64: - | J64: - | K64: - | L64: - | M64: -
A65: 1075 | B65: 1080 | C65: 1250 | D65: - | E65: - | F65: - | G65: - | H65: - | I65: - | J65: - | K65: - | L65: - | M65: -
A66: 1080 | B66: 1085 | C66: 1320 | D66: - | E66: - | F66: - | G66: - | H66: - | I66: - | J66: - | K66: - | L66: - | M66: -
A67: 1085 | B67: 1090 | C67: 1390 | D67: - | E67: - | F67: - | G67: - | H67: - | I67: - | J67: - | K67: - | L67: - | M67: -
A68: 1090 | B68: 1095 | C68: 1460 | D68: - | E68: - | F68: - | G68: - | H68: - | I68: - | J68: - | K68: - | L68: - | M68: -
A69: 1095 | B69: 1100 | C69: 1530 | D69: - | E69: - | F69: - | G69: - | H69: - | I69: - | J69: - | K69: - | L69: - | M69: -
A70: 1100 | B70: 1105 | C70: 1600 | D70: - | E70: - | F70: - | G70: - | H70: - | I70: - | J70: - | K70: - | L70: - | M70: -
A71: 1105 | B71: 1110 | C71: 1670 | D71: - | E71: - | F71: - | G71: - | H71: - | I71: - | J71: - | K71: - | L71: - | M71: -
A72: 1110 | B72: 1115 | C72: 1740 | D72: - | E72: - | F72: - | G72: - | H72: - | I72: - | J72: - | K72: - | L72: - | M72: -
A73: 1115 | B73: 1120 | C73: 1810 | D73: - | E73: - | F73: - | G73: - | H73: - | I73: - | J73: - | K73: - | L73: - | M73: -
A74: 1120 | B74: 1125 | C74: 1880 | D74: - | E74: - | F74: - | G74: - | H74: - | I74: - | J74: - | K74: - | L74: - | M74: -
A75: 1125 | B75: 1130 | C75: 1950 | D75: - | E75: - | F75: - | G75: - | H75: - | I75: - | J75: - | K75: - | L75: - | M75: -
A76: 1130 | B76: 1135 | C76: 2020 | D76: - | E76: - | F76: - | G76: - | H76: - | I76: - | J76: - | K76: - | L76: - | M76: -
A77: 1135 | B77: 1140 | C77: 2090 | D77: - | E77: - | F77: - | G77: - | H77: - | I77: - | J77: - | K77: - | L77: - | M77: -
A78: 1140 | B78: 1145 | C78: 2160 | D78: - | E78: - | F78: - | G78: - | H78: - | I78: - | J78: - | K78: - | L78: - | M78: -
A79: 1145 | B79: 1150 | C79: 2230 | D79: - | E79: - | F79: - | G79: - | H79: - | I79: - | J79: - | K79: - | L79: - | M79: -
A80: 1150 | B80: 1155 | C80: 2300 | D80: - | E80: - | F80: - | G80: - | H80: - | I80: - | J80: - | K80: - | L80: - | M80: -
A81: 1155 | B81: 1160 | C81: 2370 | D81: - | E81: - | F81: - | G81: - | H81: - | I81: - | J81: - | K81: - | L81: - | M81: -
A82: 1160 | B82: 1165 | C82: 2440 | D82: - | E82: - | F82: - | G82: - | H82: - | I82: - | J82: - | K82: - | L82: - | M82: -
A83: 1165 | B83: 1170 | C83: 2500 | D83: - | E83: - | F83: - | G83: - | H83: - | I83: - | J83: - | K83: - | L83: - | M83: -
A84: 1170 | B84: 1175 | C84: 2570 | D84: - | E84: - | F84: - | G84: - | H84: - | I84: - | J84: - | K84: - | L84: - | M84: -
A85: 1175 | B85: 1180 | C85: 2640 | D85: - | E85: - | F85: - | G85: - | H85: - | I85: - | J85: - | K85: - | L85: - | M85: -
A86: 1180 | B86: 1185 | C86: 2710 | D86: - | E86: - | F86: - | G86: - | H86: - | I86: - | J86: - | K86: - | L86: - | M86: -
A87: 1185 | B87: 1190 | C87: 2780 | D87: - | E87: - | F87: - | G87: - | H87: - | I87: - | J87: - | K87: - | L87: - | M87: -
A88: 1190 | B88: 1195 | C88: 2850 | D88: - | E88: - | F88: - | G88: - | H88: - | I88: - | J88: - | K88: - | L88: - | M88: -
A89: 1195 | B89: 1200 | C89: 2920 | D89: - | E89: - | F89: - | G89: - | H89: - | I89: - | J89: - | K89: - | L89: - | M89: -
A90: 1200 | B90: 1205 | C90: 2990 | D90: - | E90: - | F90: - | G90: - | H90: - | I90: - | J90: - | K90: - | L90: - | M90: -
A91: 1205 | B91: 1210 | C91: 3060 | D91: - | E91: - | F91: - | G91: - | H91: - | I91: - | J91: - | K91: - | L91: - | M91: -
A92: 1210 | B92: 1215 | C92: 3130 | D92: - | E92: - | F92: - | G92: - | H92: - | I92: - | J92: - | K92: - | L92: - | M92: -
A93: 1215 | B93: 1220 | C93: 3200 | D93: - | E93: - | F93: - | G93: - | H93: - | I93: - | J93: - | K93: - | L93: - | M93: -
A94: 1220 | B94: 1225 | C94: 3270 | D94: - | E94: - | F94: - | G94: - | H94: - | I94: - | J94: - | K94: - | L94: - | M94: -
A95: 1225 | B95: 1230 | C95: 3340 | D95: - | E95: - | F95: - | G95: - | H95: - | I95: - | J95: - | K95: - | L95: - | M95: -
A96: 1230 | B96: 1235 | C96: 3410 | D96: - | E96: - | F96: - | G96: - | H96: - | I96: - | J96: - | K96: - | L96: - | M96: -
A97: 1235 | B97: 1240 | C97: 3480 | D97: - | E97: - | F97: - | G97: - | H97: - | I97: - | J97: - | K97: - | L97: - | M97: -
A98: 1240 | B98: 1245 | C98: 3550 | D98: - | E98: - | F98: - | G98: - | H98: - | I98: - | J98: - | K98: - | L98: - | M98: -
A99: 1245 | B99: 1250 | C99: 3620 | D99: - | E99: - | F99: - | G99: - | H99: - | I99: - | J99: - | K99: - | L99: - | M99: -
A100: 1250 | B100: 1255 | C100: 3700 | D100: - | E100: - | F100: - | G100: - | H100: - | I100: - | J100: - | K100: - | L100: - | M100: -
A101: 1255 | B101: 1260 | C101: 3810 | D101: - | E101: - | F101: - | G101: - | H101: - | I101: - | J101: - | K101: - | L101: - | M101: -
A102: 1260 | B102: 1265 | C102: 3910 | D102: - | E102: - | F102: - | G102: - | H102: - | I102: - | J102: - | K102: - | L102: - | M102: -
A103: 1265 | B103: 1270 | C103: 4010 | D103: - | E103: - | F103: - | G103: - | H103: - | I103: - | J103: - | K103: - | L103: - | M103: -
A104: 1270 | B104: 1275 | C104: 4120 | D104: - | E104: - | F104: - | G104: - | H104: - | I104: - | J104: - | K104: - | L104: - | M104: -
A105: 1275 | B105: 1280 | C105: 4220 | D105: - | E105: - | F105: - | G105: - | H105: - | I105: - | J105: - | K105: - | L105: - | M105: -
A106: 1280 | B106: 1285 | C106: 4320 | D106: - | E106: - | F106: - | G106: - | H106: - | I106: - | J106: - | K106: - | L106: - | M106: -
A107: 1285 | B107: 1290 | C107: 4430 | D107: - | E107: - | F107: - | G107: - | H107: - | I107: - | J107: - | K107: - | L107: - | M107: -
A108: 1290 | B108: 1295 | C108: 4530 | D108: - | E108: - | F108: - | G108: - | H108: - | I108: - | J108: - | K108: - | L108: - | M108: -
A109: 1295 | B109: 1300 | C109: 4630 | D109: - | E109: - | F109: - | G109: - | H109: - | I109: - | J109: - | K109: - | L109: - | M109: -
A110: 1300 | B110: 1305 | C110: 4740 | D110: - | E110: - | F110: - | G110: - | H110: - | I110: - | J110: - | K110: - | L110: - | M110: -
A111: 1305 | B111: 1310 | C111: 4840 | D111: - | E111: - | F111: - | G111: - | H111: - | I111: - | J111: - | K111: - | L111: - | M111: -
A112: 1310 | B112: 1315 | C112: 4940 | D112: - | E112: - | F112: - | G112: - | H112: - | I112: - | J112: - | K112: - | L112: - | M112: -
A113: 1315 | B113: 1320 | C113: 5050 | D113: - | E113: - | F113: - | G113: - | H113: - | I113: - | J113: - | K113: - | L113: - | M113: -
A114: 1320 | B114: 1325 | C114: 5150 | D114: - | E114: - | F114: - | G114: - | H114: - | I114: - | J114: - | K114: - | L114: - | M114: -
A115: 1325 | B115: 1330 | C115: 5250 | D115: - | E115: - | F115: - | G115: - | H115: - | I115: - | J115: - | K115: - | L115: - | M115: -
A116: 1330 | B116: 1335 | C116: 5360 | D116: - | E116: - | F116: - | G116: - | H116: - | I116: - | J116: - | K116: - | L116: - | M116: -
A117: 1335 | B117: 1340 | C117: 5460 | D117: - | E117: - | F117: - | G117: - | H117: - | I117: - | J117: - | K117: - | L117: - | M117: -
A118: 1340 | B118: 1345 | C118: 5560 | D118: 1060 | E118: - | F118: - | G118: - | H118: - | I118: - | J118: - | K118: - | L118: - | M118: -
A119: 1345 | B119: 1350 | C119: 5670 | D119: 1170 | E119: - | F119: - | G119: - | H119: - | I119: - | J119: - | K119: - | L119: - | M119: -
A120: 1350 | B120: 1355 | C120: 5770 | D120: 1270 | E120: - | F120: - | G120: - | H120: - | I120: - | J120: - | K120: - | L120: - | M120: -
A121: 1355 | B121: 1360 | C121: 5870 | D121: 1370 | E121: - | F121: - | G121: - | H121: - | I121: - | J121: - | K121: - | L121: - | M121: -
A122: 1360 | B122: 1365 | C122: 5980 | D122: 1480 | E122: - | F122: - | G122: - | H122: - | I122: - | J122: - | K122: - | L122: - | M122: -
A123: 1365 | B123: 1370 | C123: 6080 | D123: 1580 | E123: - | F123: - | G123: - | H123: - | I123: - | J123: - | K123: - | L123: - | M123: -
A124: 1370 | B124: 1375 | C124: 6180 | D124: 1680 | E124: - | F124: - | G124: - | H124: - | I124: - | J124: - | K124: - | L124: - | M124: -
A125: 1375 | B125: 1380 | C125: 6290 | D125: 1790 | E125: - | F125: - | G125: - | H125: - | I125: - | J125: - | K125: - | L125: - | M125: -
A126: 1380 | B126: 1385 | C126: 6390 | D126: 1890 | E126: - | F126: - | G126: - | H126: - | I126: - | J126: - | K126: - | L126: - | M126: -
A127: 1385 | B127: 1390 | C127: 6490 | D127: 1990 | E127: - | F127: - | G127: - | H127: - | I127: - | J127: - | K127: - | L127: - | M127: -
A128: 1390 | B128: 1395 | C128: 6600 | D128: 2100 | E128: - | F128: - | G128: - | H128: - | I128: - | J128: - | K128: - | L128: - | M128: -
A129: 1395 | B129: 1400 | C129: 6700 | D129: 2200 | E129: - | F129: - | G129: - | H129: - | I129: - | J129: - | K129: - | L129: - | M129: -
A130: 1400 | B130: 1405 | C130: 6800 | D130: 2300 | E130: - | F130: - | G130: - | H130: - | I130: - | J130: - | K130: - | L130: - | M130: -
A131: 1405 | B131: 1410 | C131: 6910 | D131: 2410 | E131: - | F131: - | G131: - | H131: - | I131: - | J131: - | K131: - | L131: - | M131: -
A132: 1410 | B132: 1415 | C132: 7010 | D132: 2510 | E132: - | F132: - | G132: - | H132: - | I132: - | J132: - | K132: - | L132: - | M132: -
A133: 1415 | B133: 1420 | C133: 7110 | D133: 2610 | E133: - | F133: - | G133: - | H133: - | I133: - | J133: - | K133: - | L133: - | M133: -
A134: 1420 | B134: 1425 | C134: 7210 | D134: 2710 | E134: - | F134: - | G134: - | H134: - | I134: - | J134: - | K134: - | L134: - | M134: -
A135: 1425 | B135: 1430 | C135: 7320 | D135: 2820 | E135: - | F135: - | G135: - | H135: - | I135: - | J135: - | K135: - | L135: - | M135: -
A136: 1430 | B136: 1435 | C136: 7420 | D136: 2920 | E136: - | F136: - | G136: - | H136: - | I136: - | J136: - | K136: - | L136: - | M136: -
A137: 1435 | B137: 1440 | C137: 7520 | D137: 3020 | E137: - | F137: - | G137: - | H137: - | I137: - | J137: - | K137: - | L137: - | M137: -
A138: 1440 | B138: 1445 | C138: 7630 | D138: 3130 | E138: - | F138: - | G138: - | H138: - | I138: - | J138: - | K138: - | L138: - | M138: -
A139: 1445 | B139: 1450 | C139: 7730 | D139: 3230 | E139: - | F139: - | G139: - | H139: - | I139: - | J139: - | K139: - | L139: - | M139: -
A140: 1450 | B140: 1455 | C140: 7830 | D140: 3330 | E140: - | F140: - | G140: - | H140: - | I140: - | J140: - | K140: - | L140: - | M140: -
A141: 1455 | B141: 1460 | C141: 7940 | D141: 3440 | E141: - | F141: - | G141: - | H141: - | I141: - | J141: - | K141: - | L141: - | M141: -
A142: 1460 | B142: 1465 | C142: 8040 | D142: 3540 | E142: - | F142: - | G142: - | H142: - | I142: - | J142: - | K142: - | L142: - | M142: -
A143: 1465 | B143: 1470 | C143: 8140 | D143: 3640 | E143: - | F143: - | G143: - | H143: - | I143: - | J143: - | K143: - | L143: - | M143: -
A144: 1470 | B144: 1475 | C144: 8250 | D144: 3750 | E144: - | F144: - | G144: - | H144: - | I144: - | J144: - | K144: - | L144: - | M144: -
A145: 1475 | B145: 1480 | C145: 8350 | D145: 3850 | E145: - | F145: - | G145: - | H145: - | I145: - | J145: - | K145: - | L145: - | M145: -
A146: 1480 | B146: 1485 | C146: 8450 | D146: 3950 | E146: - | F146: - | G146: - | H146: - | I146: - | J146: - | K146: - | L146: - | M146: -
A147: 1485 | B147: 1490 | C147: 8560 | D147: 4060 | E147: - | F147: - | G147: - | H147: - | I147: - | J147: - | K147: - | L147: - | M147: -
A148: 1490 | B148: 1495 | C148: 8660 | D148: 4160 | E148: - | F148: - | G148: - | H148: - | I148: - | J148: - | K148: - | L148: - | M148: -
A149: 1495 | B149: 1500 | C149: 8760 | D149: 4260 | E149: - | F149: - | G149: - | H149: - | I149: - | J149: - | K149: - | L149: - | M149: -
A150: 1500 | B150: 1510 | C150: 8920 | D150: 4420 | E150: - | F150: - | G150: - | H150: - | I150: - | J150: - | K150: - | L150: - | M150: -
A151: 1510 | B151: 1520 | C151: 9120 | D151: 4620 | E151: - | F151: - | G151: - | H151: - | I151: - | J151: - | K151: - | L151: - | M151: -
A152: 1520 | B152: 1530 | C152: 9330 | D152: 4830 | E152: - | F152: - | G152: - | H152: - | I152: - | J152: - | K152: - | L152: - | M152: -
A153: 1530 | B153: 1540 | C153: 9540 | D153: 5040 | E153: - | F153: - | G153: - | H153: - | I153: - | J153: - | K153: - | L153: - | M153: -
A154: 1540 | B154: 1550 | C154: 9740 | D154: 5240 | E154: - | F154: - | G154: - | H154: - | I154: - | J154: - | K154: - | L154: - | M154: -
A155: 1550 | B155: 1560 | C155: 9950 | D155: 5450 | E155: - | F155: - | G155: - | H155: - | I155: - | J155: - | K155: - | L155: - | M155: -
A156: 1560 | B156: 1570 | C156: 10160 | D156: 5660 | E156: - | F156: - | G156: - | H156: - | I156: - | J156: - | K156: - | L156: - | M156: -
A157: 1570 | B157: 1580 | C157: 10360 | D157: 5860 | E157: - | F157: - | G157: - | H157: - | I157: - | J157: - | K157: - | L157: - | M157: -
A158: 1580 | B158: 1590 | C158: 10570 | D158: 6070 | E158: - | F158: - | G158: - | H158: - | I158: - | J158: - | K158: - | L158: - | M158: -
A159: 1590 | B159: 1600 | C159: 10780 | D159: 6280 | E159: - | F159: - | G159: - | H159: - | I159: - | J159: - | K159: - | L159: - | M159: -
A160: 1600 | B160: 1610 | C160: 10980 | D160: 6480 | E160: - | F160: - | G160: - | H160: - | I160: - | J160: - | K160: - | L160: - | M160: -
A161: 1610 | B161: 1620 | C161: 11190 | D161: 6690 | E161: - | F161: - | G161: - | H161: - | I161: - | J161: - | K161: - | L161: - | M161: -
A162: 1620 | B162: 1630 | C162: 11400 | D162: 6900 | E162: - | F162: - | G162: - | H162: - | I162: - | J162: - | K162: - | L162: - | M162: -
A163: 1630 | B163: 1640 | C163: 11600 | D163: 7100 | E163: - | F163: - | G163: - | H163: - | I163: - | J163: - | K163: - | L163: - | M163: -
A164: 1640 | B164: 1650 | C164: 11810 | D164: 7310 | E164: - | F164: - | G164: - | H164: - | I164: - | J164: - | K164: - | L164: - | M164: -
A165: 1650 | B165: 1660 | C165: 12020 | D165: 7520 | E165: - | F165: - | G165: - | H165: - | I165: - | J165: - | K165: - | L165: - | M165: -
A166: 1660 | B166: 1670 | C166: 12220 | D166: 7720 | E166: - | F166: - | G166: - | H166: - | I166: - | J166: - | K166: - | L166: - | M166: -
A167: 1670 | B167: 1680 | C167: 12430 | D167: 7930 | E167: - | F167: - | G167: - | H167: - | I167: - | J167: - | K167: - | L167: - | M167: -
A168: 1680 | B168: 1690 | C168: 12640 | D168: 8140 | E168: - | F168: - | G168: - | H168: - | I168: - | J168: - | K168: - | L168: - | M168: -
A169: 1690 | B169: 1700 | C169: 12840 | D169: 8340 | E169: - | F169: - | G169: - | H169: - | I169: - | J169: - | K169: - | L169: - | M169: -
A170: 1700 | B170: 1710 | C170: 13050 | D170: 8550 | E170: - | F170: - | G170: - | H170: - | I170: - | J170: - | K170: - | L170: - | M170: -
A171: 1710 | B171: 1720 | C171: 13260 | D171: 8760 | E171: - | F171: - | G171: - | H171: - | I171: - | J171: - | K171: - | L171: - | M171: -
A172: 1720 | B172: 1730 | C172: 13460 | D172: 8960 | E172: 1040 | F172: - | G172: - | H172: - | I172: - | J172: - | K172: - | L172: - | M172: -
A173: 1730 | B173: 1740 | C173: 13670 | D173: 9170 | E173: 1240 | F173: - | G173: - | H173: - | I173: - | J173: - | K173: - | L173: - | M173: -
A174: 1740 | B174: 1750 | C174: 13880 | D174: 9380 | E174: 1440 | F174: - | G174: - | H174: - | I174: - | J174: - | K174: - | L174: - | M174: -
A175: 1750 | B175: 1760 | C175: 14080 | D175: 9580 | E175: 1640 | F175: - | G175: - | H175: - | I175: - | J175: - | K175: - | L175: - | M175: -
A176: 1760 | B176: 1770 | C176: 14290 | D176: 9790 | E176: 1830 | F176: - | G176: - | H176: - | I176: - | J176: - | K176: - | L176: - | M176: -
A177: 1770 | B177: 1780 | C177: 14500 | D177: 10000 | E177: 2030 | F177: - | G177: - | H177: - | I177: - | J177: - | K177: - | L177: - | M177: -
A178: 1780 | B178: 1790 | C178: 14700 | D178: 10200 | E178: 2230 | F178: - | G178: - | H178: - | I178: - | J178: - | K178: - | L178: - | M178: -
A179: 1790 | B179: 1800 | C179: 14910 | D179: 10410 | E179: 2430 | F179: - | G179: - | H179: - | I179: - | J179: - | K179: - | L179: - | M179: -
A180: 1800 | B180: 1810 | C180: 15110 | D180: 10610 | E180: 2630 | F180: - | G180: - | H180: - | I180: - | J180: - | K180: - | L180: - | M180: -
A181: 1810 | B181: 1820 | C181: 15320 | D181: 10820 | E181: 2830 | F181: - | G181: - | H181: - | I181: - | J181: - | K181: - | L181: - | M181: -
A182: 1820 | B182: 1830 | C182: 15530 | D182: 11030 | E182: 3020 | F182: - | G182: - | H182: - | I182: - | J182: - | K182: - | L182: - | M182: -
A183: 1830 | B183: 1840 | C183: 15730 | D183: 11230 | E183: 3220 | F183: - | G183: - | H183: - | I183: - | J183: - | K183: - | L183: - | M183: -
A184: 1840 | B184: 1850 | C184: 15940 | D184: 11440 | E184: 3420 | F184: - | G184: - | H184: - | I184: - | J184: - | K184: - | L184: - | M184: -
A185: 1850 | B185: 1860 | C185: 16150 | D185: 11650 | E185: 3620 | F185: - | G185: - | H185: - | I185: - | J185: - | K185: - | L185: - | M185: -
A186: 1860 | B186: 1870 | C186: 16350 | D186: 11850 | E186: 3820 | F186: - | G186: - | H186: - | I186: - | J186: - | K186: - | L186: - | M186: -
A187: 1870 | B187: 1880 | C187: 16560 | D187: 12060 | E187: 4020 | F187: - | G187: - | H187: - | I187: - | J187: - | K187: - | L187: - | M187: -
A188: 1880 | B188: 1890 | C188: 16770 | D188: 12270 | E188: 4220 | F188: - | G188: - | H188: - | I188: - | J188: - | K188: - | L188: - | M188: -
A189: 1890 | B189: 1900 | C189: 16970 | D189: 12470 | E189: 4410 | F189: 1040 | G189: - | H189: - | I189: - | J189: - | K189: - | L189: - | M189: -
A190: 1900 | B190: 1910 | C190: 17180 | D190: 12680 | E190: 4610 | F190: 1240 | G190: - | H190: - | I190: - | J190: - | K190: - | L190: - | M190: -
A191: 1910 | B191: 1920 | C191: 17390 | D191: 12890 | E191: 4810 | F191: 1440 | G191: - | H191: - | I191: - | J191: - | K191: - | L191: - | M191: -
A192: 1920 | B192: 1930 | C192: 17590 | D192: 13090 | E192: 5010 | F192: 1630 | G192: - | H192: - | I192: - | J192: - | K192: - | L192: - | M192: -
A193: 1930 | B193: 1940 | C193: 17800 | D193: 13300 | E193: 5210 | F193: 1830 | G193: - | H193: - | I193: - | J193: - | K193: - | L193: - | M193: -
A194: 1940 | B194: 1950 | C194: 18010 | D194: 13510 | E194: 5410 | F194: 2030 | G194: - | H194: - | I194: - | J194: - | K194: - | L194: - | M194: -
A195: 1950 | B195: 1960 | C195: 18210 | D195: 13710 | E195: 5600 | F195: 2230 | G195: - | H195: - | I195: - | J195: - | K195: - | L195: - | M195: -
A196: 1960 | B196: 1970 | C196: 18420 | D196: 13920 | E196: 5800 | F196: 2430 | G196: - | H196: - | I196: - | J196: - | K196: - | L196: - | M196: -
A197: 1970 | B197: 1980 | C197: 18630 | D197: 14130 | E197: 6000 | F197: 2630 | G197: - | H197: - | I197: - | J197: - | K197: - | L197: - | M197: -
A198: 1980 | B198: 1990 | C198: 18880 | D198: 14330 | E198: 6200 | F198: 2820 | G198: - | H198: - | I198: - | J198: - | K198: - | L198: - | M198: -
A199: 1990 | B199: 2000 | C199: 19200 | D199: 14540 | E199: 6400 | F199: 3020 | G199: - | H199: - | I199: - | J199: - | K199: - | L199: - | M199: -
A200: 2000 | B200: 2010 | C200: 19520 | D200: 14750 | E200: 6600 | F200: 3220 | G200: - | H200: - | I200: - | J200: - | K200: - | L200: - | M200: -
... 455 more rows

Sheet 2025년 최저임금
A2: 2025년도 최저임금 조견표(주휴수당 포함)
A3: ★ 2025년도 | B3: 최저임금(1시간): 10,030원
A5: 1주간의 소정근로시간 | B5: 주휴시간수 | C5: 최저시급 | D5: 주휴수당 | E5: 1주간의 실근로시간 | F5: 1주간의 실근로에 대한 임금 | G5: 받아야할 임금(1주간의 실근로시간임금+주휴수당) | H5: 비고 (월급환산) | I5: 월기준근무시간
A6: 15 | B6: =(A6*4)/20 -> 3 | C6: 10030 | D6: =C6*B6 -> 30090 | E6: 15 | F6: =$C6*$E6 -> 150450 | G6: =$D6+$F6 -> 180540 | H6: =$C6*$I6 -> 784489.2857 | I6: =(($E6+$B6)/7*365)/12 -> 78.21428571
A7: 16 | B7: 3.2 | C7: 10030 | D7: 32096 | E7: 16 | F7: =$C7*$E7 -> 160480 | G7: =$D7+$F7 -> 192576 | H7: =$C7*$I7 -> 836788.5714 | I7: =(($E7+$B7)/7*365)/12 -> 83.42857143
A8: 17 | B8: 3.4 | C8: 10030 | D8: 34102 | E8: 17 | F8: 170510 | G8: 204612 | H8: 889087.8571 | I8: 88.64285714
A9: 18 | B9: 3.6 | C9: 10030 | D9: 36108 | E9: 18 | F9: 180540 | G9: 216648 | H9: 941387.1429 | I9: 93.85714286
A10: 19 | B10: 3.8 | C10: 10030 | D10: 38114 | E10: 19 | F10: 190570 | G10: 228684 | H10: 993686.4286 | I10: 99.07142857
A11: 20 | B11: 4 | C11: 10030 | D11: 40120 | E11: 20 | F11: 200600 | G11: 240720 | H11: 1045985.714 | I11: 104.2857143
A12: 21 | B12: 4.2 | C12: 10030 | D12: 42126 | E12: 21 | F12: 210630 | G12: 252756 | H12: 1098285 | I12: 109.5
A13: 22 | B13: 4.4 | C13: 10030 | D13: 44132 | E13: 22 | F13: 220660 | G13: 264792 | H13: 1150584.286 | I13: 114.7142857
A14: 23 | B14: 4.6 | C14: 10030 | D14: 46138 | E14: 23 | F14: 230690 | G14: 276828 | H14: 1202883.571 | I14: 119.9285714
A15: 24 | B15: 4.8 | C15: 10030 | D15: 48144 | E15: 24 | F15: 240720 | G15: 288864 | H15: 1255182.857 | I15: 125.1428571
A16: 25 | B16: 5 | C16: 10030 | D16: 50150 | E16: 25 | F16: 250750 | G16: 300900 | H16: 1307482.143 | I16: 130.3571429
A17: 26 | B17: 5.2 | C17: 10030 | D17: 52156 | E17: 26 | F17: 260780 | G17: 312936 | H17: 1359781.429 | I17: 135.5714286
A18: 27 | B18: 5.4 | C18: 10030 | D18: 54162 | E18: 27 | F18: 270810 | G18: 324972 | H18: 1412080.714 | I18: 140.7857143
A19: 28 | B19: 5.6 | C19: 10030 | D19: 56168 | E19: 28 | F19: 280840 | G19: 337008 | H19: 1464380 | I19: 146
A20: 29 | B20: 5.8 | C20: 10030 | D20: 58174 | E20: 29 | F20: 290870 | G20: 349044 | H20: 1516679.286 | I20: 151.2142857
A21: 30 | B21: 6 | C21: 10030 | D21: 60180 | E21: 30 | F21: 300900 | G21: 361080 | H21: 1568978.571 | I21: 156.4285714
A22: 31 | B22: 6.2 | C22: 10030 | D22: 62186 | E22: 31 | F22: 310930 | G22: 373116 | H22: 1621277.857 | I22: 161.6428571
A23: 32 | B23: 6.4 | C23: 10030 | D23: 64192 | E23: 32 | F23: 320960 | G23: 385152 | H23: 1673577.143 | I23: 166.8571429
A24: 33 | B24: 6.6 | C24: 10030 | D24: 66198 | E24: 33 | F24: 330990 | G24: 397188 | H24: 1725876.429 | I24: 172.0714286
A25: 34 | B25: 6.8 | C25: 10030 | D25: 68204 | E25: 34 | F25: 341020 | G25: 409224 | H25: 1778175.714 | I25: 177.2857143
A26: 35 | B26: 7 | C26: 10030 | D26: 70210 | E26: 35 | F26: 351050 | G26: 421260 | H26: 1830475 | I26: 182.5
A27: 36 | B27: 7.2 | C27: 10030 | D27: 72216 | E27: 36 | F27: 361080 | G27: 433296 | H27: 1882774.286 | I27: 187.7142857
A28: 37 | B28: 7.4 | C28: 10030 | D28: 74222 | E28: 37 | F28: 371110 | G28: 445332 | H28: 1935073.571 | I28: 192.9285714
A29: 38 | B29: 7.6 | C29: 10030 | D29: 76228 | E29: 38 | F29: 381140 | G29: 457368 | H29: 1987372.857 | I29: 198.1428571
A30: 39 | B30: 7.8 | C30: 10030 | D30: 78234 | E30: 39 | F30: 391170 | G30: 469404 | H30: 2039672.143 | I30: 203.3571429
A31: 40 | B31: 8 | C31: 10030 | D31: 80240 | E31: 40 | F31: 401200 | G31: 481440 | H31: 2096270 | I31: 209

Sheet 외국인 국민연금 적용국가
